Workbook

Sheet Summary
D2: Summary of the Sugarcane-Based Ethanol Pathway for the California Low Carbon Fuel Standard
C3: Applicant: | D3: =Calculator!C21 -> Canetofuel, Inc., S.A. | G3: =CONCATENATE("Location: ",Calculator!F21, ", ",Calculator!I21,", ",Calculator!K21) -> Location: Fazenda Colheita Verde, Jaboticabal, Sao Paulo, Brazil
C4: Description: | D4: Ethanol produced from Sugarcane-based feedstocks (Sugarcane Juice and Molasses) and exported to California by Ocean Tanker.
C6: Feedstock Production Electricity Mix | E6: =Calculator!I23 -> 29-Brazilian Mix | G6: Fuel Production Electricity Mix | H6: =Calculator!I23 -> 29-Brazilian Mix
C7: Feedstock Production | G7: Fuel Production
C8: Feedstock Production | D8: Column2 | E8: Column1 | G8: Fuel Production | H8: Column1
C9: 24-Month Sugarcane Procured, metric tonnes | G9: Total Undenatured Ethanol, gallons | H9: =H10+H11 -> 14326502.46
D10: Propria and Terceiros (in Portuguese) | E10: =Calculator!G59 -> 2430000 | G10: Total Undenatured Ethanol from Cane Juice, dry gallons | H10: =Calculator!G$86 -> 7659685.408
C11: Ethanol Yield, gal/metric tonne sugarcane | E11: =(Calculator!F86*Calculator!F84+Calculator!G86*Calculator!G84)/(Calculator!F86+Calculator!G86) -> 14.88301569 | G11: Total Undenatured Ethanol from Molasses, dry gallons | H11: =Calculator!F$86 -> 6666817.053
C13: Feedstock Transport | G13: Energy Consumption
D14: From Field to Ethanol Plant | E14: MDD Truck | G14: Residual Oil (Btu/gal) | H14: 300
D15: Shares | E15: 1 | G15: Biomass (Btu/gal) | H15: =E10*0.28*0.5*13648337/H9 -> 324096.147
D16: Miles | E16: 2 | G16: Electricity, (kWh/gal) | H16: =Calculator!N59/(Calculator!Y59*64.1593) -> 0.06897606365
D17: From Field to Ethanol Plant | E17: HDD Truck
D18: Shares | E18: 1 | G18: Chemical Usage
D19: Miles | E19: =(Calculator!D59*Calculator!C59+Calculator!E59*Calculator!F59)/(Calculator!C59+Calculator!E59)/1.609 -> 27.48900859 | G19: Lime (grams/tonne cane), standard value | H19: 880
C21: Co-Product Credit, Cogenerated Electricity Exports | G21: Fuel Transport
D22: Net Cogenerated Surplus Electricity Exported (kWh/yr) | E22: =(Calculator!O59-Calculator!N59) -> 233520000 | G22: By HD Truck from Plant to Port, miles | H22: =Calculator!C27/1.609 -> 262.2747048
D23: Total Annual Ethanol Produced (gal) | E23: =Calculator!G94 -> 14326502.46 | G23: By Rail From Plant to Port, miles | H23: =Calculator!E27/1.609 -> 200.1243008
D24: Co-Product Credit (kWH/gal) | E24: =E22/E23 -> 16.29986109 | G24: By Pipeline From Plant to Port, miles | H24: =Calculator!G27/1.609 -> 200.1243008
G25: By Ocean Transport to California Port, miles | H25: =Calculator!I27/1.609 -> 9790
C26: Mechanized Harvesting Level | E26: =Calculator!C98 -> 0.8 | G26: Route | H26: =Calculator!I26 -> Via Cape Horn
D27: State-wide Regional Average | E27: 0.8
D28: Harvest State | E28: Sao Paolo, Brazil | G28: Total Well-toTank CI, gCO2e/MJ | H28: =Calculator!G17 -> 42.81679618
D29: Burn Area Evaluation Method | E29: GIS (Landsat-8 Imagery) | G29: Fuel CI | H29: =('EF Tables'!C129*Calculator!F86+Calculator!G86*'EF Tables'!D129)/(Calculator!F86+Calculator!G86) -> 28.79944518
G30: Denaturant Use, gCO2e/MJ | H30: =('EF Tables'!D131*Summary!H10+'EF Tables'!C131*Summary!H11)/(Summary!H10+Summary!H11) -> 2.217350999
C31: Filter Cake Transport | D31: Miles | E31: =Calculator!I59/1.609 -> 29.48943618 | G31: Indirect Land Use Change, gCO2e/MJ | H31: 11.8
C45: Via Panama Canal
C46: Via Panama Canal
C47: Via Cape Horn
C48: Via Strait of Magellan

Sheet Calculator
E2: DRAFT - FOR DISCUSSION ONLY - DO NOT USE | I2: Yellow Cells - Information or Value to be Provided by Applicant or Mill
I3: Light Blue Cells show CI results
I4: Green Cells show the calculation button
I5: Gray Cells are Intermediate or Calculated Values
B6: Version: SIMCAL_CANE_001
B8: LCFS Sugarcane-Based Ethanol Simplified Carbon Intensity Calculator
B9: LCFS Pathway: Ethanol Produced from Sugarcane Feedstock in Brazil, and Exported to California Via Ocean Tanker
B10: MONTHLY PRODUCTION AND OPERATIONAL DATA FOR PATHWAY FUEL CARBON INTENSITY (CI) DETERMINATION
B12: Pathway Summary and Estimated CI (gCO2e/MJ)
B13: Pathway Summary: | C13: Sugarcane-based Ethanol produced in Brazil; transported by ocean-going vessels to California for use as a transportation fuel.
B14: Sugarcane Molasses-based Ethanol CI | D14: ='EF Tables'!C132 -> 41.859369 | E14: Sugarcane Juice-based Ethanol CI | G14: ='EF Tables'!D132 -> 43.65011915
B15: Ethanol Volume (Molasses Feedstock), gal | D15: =F86 -> 6666817.053 | E15: Ethanol Volume (Sugarcane Juice Feedstock), gal | G15: =G86 -> 7659685.408
B16: Ethanol Yield (Molasses Feedstock), gal/tonne sugarcane | D16: =F84 -> 7.838703178 | E16: Ethanol Yield (Juice Feedstock), gal/tonne sugarcane | G16: =G84 -> 21.01422609
F17: Composite CI, gCO2e/MJ: | G17: =(D14*D15+G14*G15)/(D15+G15) -> 42.81679618
B20: Section 1: Enter Applicant & Mill Specific Information
B21: 1.1 Company Name | C21: Canetofuel, Inc., S.A. | E21: 1.4 Mill Location | F21: Fazenda Colheita Verde, Jaboticabal | H21: 1.5 State | I21: Sao Paulo | J21: 1.6 Country | K21: Brazil
B22: 1.2 Company ID | C22: XXXX | E22: 1.7 Harvest Cycle(s) | F22: January 2015-December 2017 | H22: 1.9 Electric Transmission and Distribution Loss | I22: 0.081 | J22: 1.11 Credit for Mechanized Harvesting | K22: Standard
B23: 1.3 Facility ID | C23: YYYYY | E23: 1.8 Application Type | F23: Initial Appliation for Certification | H23: 1.10 Regional Electric Mix (Feedstock/Fuel) | I23: 29-Brazilian Mix | J23: 1.12 Credit for Export of Surplus Electricity | K23: Yes
B25: Section 2: Enter Fuel Transport Information
B26: 2.1 Ethanol Transport Primary Mode | C26: By HDDT from Ethanol Plant to Port | D26: 2.3 Ethanol Transport Secondary Mode | E26: By Rail to or towards Port | F26: 2.5 Ethanol Transport Tertiary Mode | G26: By Pipeline to or towards Port | H26: 2.7 Ethanol Ocean Transport Route to California | I26: Via Cape Horn | J26: 2.9 Ethanol Transport Distance - By HDDT from Port to Terminal (mi) | K26: =40 -> 40
B27: 2.2 Ethanol Transport Distance for Primary Mode (km) | C27: 422 | D27: 2.4 Ethanol Transport Distance for Secondary Mode (km) | E27: 322 | F27: 2.6 Ethanol Transport Distance for Tertiary Mode (km) | G27: 322 | H27: 2.8 Ethanol Ocean Transport Distance (km) | I27: =9790*1.609 -> 15752.11 | J27: 2.10 Ethanol Transport Distance - By HDDT from Terminal to Refueling Station (mi) | K27: 50
J28: Via Panama Canal
J29: Via Strait of Magellan
J30: Via Cape Horn
B32: Section 3: Enter Monthly Feedstock, Fuel, and Co-Product Production Data
B33: 3.1 Production Data (Monthly) | C33: 3.2 Cane Sourced from Applicant-owned Farms (Propria Farms) | D33: 3.3 Transport of Cane Sourced from Applicant-Owned Farms (weighted average distance) | E33: 3.4 Cane Purchased from Partnership Farms (Terceiros Farms) | F33: 3.5 Transport of Cane Sourced from Partnership Farms (weighted average distance) | G33: 3.6 Total Sugarcane Procured (Calculated) | H33: 3.7 Fraction Cane Mechanically Harvested (2) | I33: 3.8 Filter Cake Transport & Distribution (1) | J33: 3.9 Externally Acquired or Purchased Bagasse? | K33: 3.10 Electricity Generated from Externally Acquired or Purchased Bagasse | L33: 3.11 Externally Acquired or Purchased Molasses? | M33: 3.12 Ethanol Produced from Externally Acquired or Purchased Molasses | N33: 3.13 Purchased Electricity from the Grid | O33: 3.14 Surplus Electricity Cogenerated and Exported | P33: 3.15 Juice Allocated to Sugar Production (weighted average) (3) | Q33: 3.16 Fraction Sucrose Entering Sugar Production (monthly weighted average) (4) | R33: 3.17 Anhydrous Ethanol Production | S33: 3.18 Moisture Content (Anhydrous Ethanol) | T33: 3.19 Adjusted Anhydrous Ethanol Production (5) | U33: 3.20 Hydrous Ethanol Production | V33: 3.21 Moisture Content (Hydrous Ethanol) | W33: 3.22 Adjusted Hydrous Ethanol Production (5) | X33: 3.23 Finished/Table Sugar Production | Y33: 3.24 Total Ethanol Produced | AI33: Surplus electricity credit calculations
B34: Unit | C34: Metric Tons | D34: Km | E34: Metric Tons | F34: Km | G34: Metric Tons | H34: % | I34: Km | J34: Metric Tons | K34: kWh | L34: Metric Tons | M34: m3 | N34: kWh | O34: kWh | P34: % | R34: m3 | S34: % | T34: wet m3 | U34: m3 | V34: % | W34: wet m3 | X34: Metric Tons | Y34: (dry m3) | AI34: Standard | AJ34: Harvest Region Specific | AK34: =IF(K22="Standard",TRUE, FALSE) -> TRUE | AL34: Yes | AM34: No
B35: Month 1 | G35: =IF((C35+E35)>0,(C35+E35),"") ->  | I35: =IFERROR(((C35*D35+E35*F35)/G35)+2/AO$59,"") ->  | K35: =IF((J35*Reference!$H$83*Reference!$C$85*Reference!$H$84*Reference!$H$85/kWh2Btu)>0,(J35*Reference!$H$83*Reference!$C$85*Reference!$H$84*Reference!$H$85/kWh2Btu),"") ->  | N35: 50000 | T35: =IF((R35-M35*$R$60)>0,(R35-M35*$R$60),"") ->  | W35: =IF((U35-M35*$U$60)>0,(U35-M35*$U$60),"") ->  | Y35: =IFERROR(T35*(1-S35)+W35*(1-V35),"") ->  | AI35: Surplus allocated based on TRS to sugar and ethanol | AN35: Surplus electricity credit (kWh/gal)
B36: Month 2 | G36: =IF((C36+E36)>0,(C36+E36),"") ->  | I36: =IFERROR(((C36*D36+E36*F36)/G36)+2/AO$59,"") ->  | K36: =IF((J36*Reference!$H$83*Reference!$C$85*Reference!$H$84*Reference!$H$85/kWh2Btu)>0,(J36*Reference!$H$83*Reference!$C$85*Reference!$H$84*Reference!$H$85/kWh2Btu),"") ->  | N36: 50000 | T36: =IF((R36-M36*$R$60)>0,(R36-M36*$R$60),"") ->  | W36: =IF((U36-M36*$U$60)>0,(U36-M36*$U$60),"") ->  | Y36: =IFERROR(T36*(1-S36)+W36*(1-V36),"") ->  | AK36: kWh/year | AL36: kWh/tonne cane | AM36: Ethanol Volume (gal) | AN36: Before mass allocation | AO36: after mass allocation
B37: Month 3 | K37: =IF((J37*Reference!$H$83*Reference!$C$85*Reference!$H$84*Reference!$H$85/kWh2Btu)>0,(J37*Reference!$H$83*Reference!$C$85*Reference!$H$84*Reference!$H$85/kWh2Btu),"") ->  | N37: 50000 | T37: =IF((R37-M37*$R$60)>0,(R37-M37*$R$60),"") ->  | AI37: Molasses-EtOH | AK37: =($O$59-$N$59-$K$59)/2*$P$60 -> 81732000 | AL37: =AK37/$G$60 -> 67.2691358 | AM37: =F$86 -> 6666817.053 | AN37: =AL37/F84 -> 8.581666415 | AO37: =AN37*E91 -> 3.201123635
B38: Month 4 | C38: 100000 | D38: 40 | E38: 35000 | F38: =35*1.609 -> 56.315 | G38: 135000 | H38: 0.85 | I38: =IFERROR(((C38*D38+E38*F38)/G38)+2/AO$59,"") -> 47.44850281 | J38: 0 | K38: =IF((J38*Reference!$H$83*Reference!$C$85*Reference!$H$84*Reference!$H$85/kWh2Btu)>0,(J38*Reference!$H$83*Reference!$C$85*Reference!$H$84*Reference!$H$85/kWh2Btu),"") ->  | L38: 0 | M38: 0 | N38: 10000 | O38: 13000000 | P38: 0.65 | Q38: 0.132 | R38: 3100 | S38: 0.002 | T38: 3200 | U38: 3300 | V38: 0.056 | W38: 3100 | X38: 7900 | Y38: 6120 | AI38: Juice-EtOH | AK38: =($O$59-$N$59-$K$59)/2*(1-$P$60) -> 35028000 | AL38: =AK38/$G$60 -> 28.82962963 | AM38: =G$86 -> 7659685.408 | AN38: =AL38/G84 -> 1.371910129 | AO38: =AL38/G84 -> 1.371910129
B39: Month 5 | C39: 100000 | D39: 40 | E39: 35000 | F39: =35*1.609 -> 56.315 | G39: 135000 | H39: 0.85 | I39: 47.44850281 | J39: 0 | K39: =IF((J39*Reference!$H$83*Reference!$C$85*Reference!$H$84*Reference!$H$85/kWh2Btu)>0,(J39*Reference!$H$83*Reference!$C$85*Reference!$H$84*Reference!$H$85/kWh2Btu),"") ->  | L39: 0 | M39: 0 | N39: 10000 | O39: 13000000 | P39: 0.65 | Q39: 0.132 | R39: 3100 | S39: 0.002 | T39: 3100 | U39: 3300 | V39: 0.056 | W39: 3100 | X39: 7900 | Y39: 6020.2 | AN39: Composite Co-Product Credit (kWh/gal): | AO39: =(AO37*AM37+AO38*AM38)/(AM37+AM38) -> 2.22313197
B40: Month 6 | C40: 100000 | D40: 40 | E40: 35000 | F40: 56.315 | G40: 135000 | H40: 0.85 | I40: 47.44850281 | J40: 0 | K40: =IF((J40*Reference!$H$83*Reference!$C$85*Reference!$H$84*Reference!$H$85/kWh2Btu)>0,(J40*Reference!$H$83*Reference!$C$85*Reference!$H$84*Reference!$H$85/kWh2Btu),"") ->  | L40: 0 | M40: 0 | N40: 10000 | O40: 13000000 | P40: 0.65 | Q40: 0.132 | R40: 3100 | S40: 0.002 | T40: 3100 | U40: 3300 | V40: 0.056 | W40: 3100 | X40: 7900 | Y40: 6020.2 | AI40: Initial Appliation for Certification
B41: Month 7 | C41: 100000 | D41: 40 | E41: 35000 | F41: 56.315 | G41: 135000 | H41: 0.85 | I41: 47.44850281 | J41: 0 | K41: =IF((J41*Reference!$H$83*Reference!$C$85*Reference!$H$84*Reference!$H$85/kWh2Btu)>0,(J41*Reference!$H$83*Reference!$C$85*Reference!$H$84*Reference!$H$85/kWh2Btu),"") ->  | L41: 0 | M41: 0 | N41: 10000 | O41: 13000000 | P41: 0.65 | Q41: 0.132 | R41: 3100 | S41: 0.002 | T41: 3100 | U41: 3300 | V41: 0.056 | W41: 3100 | X41: 7900 | Y41: 6020.2 | AI41: Annual Compliance Audit
B42: Month 8 | C42: 100000 | D42: 40 | E42: 35000 | F42: 56.315 | G42: 135000 | H42: 0.85 | I42: 47.44850281 | J42: 0 | K42: =IF((J42*Reference!$H$83*Reference!$C$85*Reference!$H$84*Reference!$H$85/kWh2Btu)>0,(J42*Reference!$H$83*Reference!$C$85*Reference!$H$84*Reference!$H$85/kWh2Btu),"") ->  | L42: 0 | M42: 0 | N42: 10000 | O42: 13000000 | P42: 0.65 | Q42: 0.132 | R42: 3100 | S42: 0.002 | T42: 3100 | U42: 3300 | V42: 0.056 | W42: 3100 | X42: 7900 | Y42: 6020.2 | AI42: Amended Application for Certification
B43: Month 9 | C43: 100000 | D43: 40 | E43: 35000 | F43: 56.315 | G43: 135000 | H43: 0.85 | I43: 47.44850281 | J43: 0 | K43: =IF((J43*Reference!$H$83*Reference!$C$85*Reference!$H$84*Reference!$H$85/kWh2Btu)>0,(J43*Reference!$H$83*Reference!$C$85*Reference!$H$84*Reference!$H$85/kWh2Btu),"") ->  | L43: 0 | M43: 0 | N43: 10000 | O43: 13000000 | P43: 0.65 | Q43: 0.132 | R43: 3100 | S43: 0.002 | T43: 3100 | U43: 3300 | V43: 0.056 | W43: 3100 | X43: 7900 | Y43: 6020.2
B44: Month 10 | C44: 100000 | D44: 40 | E44: 35000 | F44: 56.315 | G44: 135000 | H44: 0.85 | I44: 47.44850281 | J44: 0 | K44: =IF((J44*Reference!$H$83*Reference!$C$85*Reference!$H$84*Reference!$H$85/kWh2Btu)>0,(J44*Reference!$H$83*Reference!$C$85*Reference!$H$84*Reference!$H$85/kWh2Btu),"") ->  | L44: 0 | M44: 0 | N44: 10000 | O44: 13000000 | P44: 0.65 | Q44: 0.132 | R44: 3100 | S44: 0.002 | T44: 3100 | U44: 3300 | V44: 0.056 | W44: 3100 | X44: 7900 | Y44: 6020.2
B45: Month 11 | C45: 100000 | D45: 40 | E45: 35000 | F45: 56.315 | G45: 135000 | H45: 0.85 | I45: 47.44850281 | J45: 0 | K45: =IF((J45*Reference!$H$83*Reference!$C$85*Reference!$H$84*Reference!$H$85/kWh2Btu)>0,(J45*Reference!$H$83*Reference!$C$85*Reference!$H$84*Reference!$H$85/kWh2Btu),"") ->  | L45: 0 | M45: 0 | N45: 10000 | O45: 13000000 | P45: 0.65 | Q45: 0.132 | R45: 3100 | S45: 0.002 | T45: 3100 | U45: 3300 | V45: 0.056 | W45: 3100 | X45: 7900 | Y45: 6020.2
B46: Month 12 | C46: 100000 | D46: 40 | E46: 35000 | F46: 56.315 | G46: 135000 | H46: 0.85 | I46: 47.44850281 | J46: 0 | K46: =IF((J46*Reference!$H$83*Reference!$C$85*Reference!$H$84*Reference!$H$85/kWh2Btu)>0,(J46*Reference!$H$83*Reference!$C$85*Reference!$H$84*Reference!$H$85/kWh2Btu),"") ->  | L46: 0 | M46: 0 | N46: 10000 | O46: 13000000 | P46: 0.65 | Q46: 0.132 | R46: 3100 | S46: 0.002 | T46: 3100 | U46: 3300 | V46: 0.056 | W46: 3100 | X46: 7900 | Y46: 6020.2
B47: Month 13 | K47: =IF((J47*Reference!$H$83*Reference!$C$85*Reference!$H$84*Reference!$H$85/kWh2Btu)>0,(J47*Reference!$H$83*Reference!$C$85*Reference!$H$84*Reference!$H$85/kWh2Btu),"") ->  | N47: 50000
B48: Month 14 | K48: =IF((J48*Reference!$H$83*Reference!$C$85*Reference!$H$84*Reference!$H$85/kWh2Btu)>0,(J48*Reference!$H$83*Reference!$C$85*Reference!$H$84*Reference!$H$85/kWh2Btu),"") ->  | N48: 50000 | AM48: g2T | AO48: 1.10231e-06
B49: Month 15 | K49: =IF((J49*Reference!$H$83*Reference!$C$85*Reference!$H$84*Reference!$H$85/kWh2Btu)>0,(J49*Reference!$H$83*Reference!$C$85*Reference!$H$84*Reference!$H$85/kWh2Btu),"") ->  | N49: 50000 | AM49: gal2L | AO49: 3.785411
B50: Month 16 | C50: 100000 | D50: 40 | E50: 35000 | F50: =35*1.609 -> 56.315 | G50: 135000 | H50: 0.85 | I50: 47.44850281 | J50: 0 | K50: =IF((J50*Reference!$H$83*Reference!$C$85*Reference!$H$84*Reference!$H$85/kWh2Btu)>0,(J50*Reference!$H$83*Reference!$C$85*Reference!$H$84*Reference!$H$85/kWh2Btu),"") ->  | L50: 0 | M50: 0 | N50: 10000 | O50: 13000000 | P50: 0.75 | Q50: 0.132 | R50: 3100 | S50: 0.002 | T50: 3100 | U50: 3300 | V50: 0.056 | W50: 3100 | X50: 7900 | Y50: 6020.2 | AM50: MT2T | AO50: 1.102311311
B51: Month 17 | C51: 100000 | D51: 40 | E51: 35000 | F51: 56.315 | G51: 135000 | H51: 0.85 | I51: 47.44850281 | J51: 0 | K51: =IF((J51*Reference!$H$83*Reference!$C$85*Reference!$H$84*Reference!$H$85/kWh2Btu)>0,(J51*Reference!$H$83*Reference!$C$85*Reference!$H$84*Reference!$H$85/kWh2Btu),"") ->  | L51: 0 | M51: 0 | N51: 10000 | O51: 13000000 | P51: 0.75 | Q51: 0.132 | R51: 3100 | S51: 0.002 | T51: 3100 | U51: 3300 | V51: 0.056 | W51: 3100 | X51: 7900 | Y51: 6020.2
B52: Month 18 | C52: 100000 | D52: 40 | E52: 35000 | F52: 56.315 | G52: 135000 | H52: 0.85 | I52: 47.44850281 | J52: 0 | K52: =IF((J52*Reference!$H$83*Reference!$C$85*Reference!$H$84*Reference!$H$85/kWh2Btu)>0,(J52*Reference!$H$83*Reference!$C$85*Reference!$H$84*Reference!$H$85/kWh2Btu),"") ->  | L52: 0 | M52: 0 | N52: 10000 | O52: 13000000 | P52: 0.75 | Q52: 0.132 | R52: 3100 | S52: 0.002 | T52: 3100 | U52: 3300 | V52: 0.056 | W52: 3100 | X52: 7900 | Y52: 6020.2 | AM52: m32gal | AO52: 264.1721071
B53: Month 19 | C53: 100000 | D53: 40 | E53: 35000 | F53: 56.315 | G53: 135000 | H53: 0.85 | I53: 47.44850281 | J53: 0 | K53: =IF((J53*Reference!$H$83*Reference!$C$85*Reference!$H$84*Reference!$H$85/kWh2Btu)>0,(J53*Reference!$H$83*Reference!$C$85*Reference!$H$84*Reference!$H$85/kWh2Btu),"") ->  | L53: 0 | M53: 0 | N53: 10000 | O53: 13000000 | P53: 0.75 | Q53: 0.132 | R53: 3100 | S53: 0.002 | T53: 3100 | U53: 3300 | V53: 0.056 | W53: 3100 | X53: 7900 | Y53: 6020.2
B54: Month 20 | C54: 100000 | D54: 40 | E54: 35000 | F54: 56.315 | G54: 135000 | H54: 0.85 | I54: 47.44850281 | J54: 0 | K54: =IF((J54*Reference!$H$83*Reference!$C$85*Reference!$H$84*Reference!$H$85/kWh2Btu)>0,(J54*Reference!$H$83*Reference!$C$85*Reference!$H$84*Reference!$H$85/kWh2Btu),"") ->  | L54: 0 | M54: 0 | N54: 10000 | O54: 13000000 | P54: 0.75 | Q54: 0.132 | R54: 3100 | S54: 0.002 | T54: 3100 | U54: 3300 | V54: 0.056 | W54: 3100 | X54: 7900 | Y54: 6020.2 | AM54: Ethanol energy density (MJ/gal) | AO54: 80.53241303
B55: Month 21 | C55: 100000 | D55: 40 | E55: 35000 | F55: 56.315 | G55: 135000 | H55: 0.85 | I55: 47.44850281 | J55: 0 | K55: =IF((J55*Reference!$H$83*Reference!$C$85*Reference!$H$84*Reference!$H$85/kWh2Btu)>0,(J55*Reference!$H$83*Reference!$C$85*Reference!$H$84*Reference!$H$85/kWh2Btu),"") ->  | L55: 0 | M55: 0 | N55: 10000 | O55: 13000000 | P55: 0.75 | Q55: 0.132 | R55: 3100 | S55: 0.002 | T55: 3100 | U55: 3300 | V55: 0.056 | W55: 3100 | X55: 7900 | Y55: 6020.2 | AM55: Ethanol LHV (Btu/gal) | AO55: 76330
B56: Month 22 | C56: 100000 | D56: 40 | E56: 35000 | F56: 56.315 | G56: 135000 | H56: 0.85 | I56: 47.44850281 | J56: 0 | K56: =IF((J56*Reference!$H$83*Reference!$C$85*Reference!$H$84*Reference!$H$85/kWh2Btu)>0,(J56*Reference!$H$83*Reference!$C$85*Reference!$H$84*Reference!$H$85/kWh2Btu),"") ->  | L56: 0 | M56: 0 | N56: 10000 | O56: 13000000 | P56: 0.75 | Q56: 0.132 | R56: 3100 | S56: 0.002 | T56: 3100 | U56: 3300 | V56: 0.056 | W56: 3100 | X56: 7900 | Y56: 6020.2 | AM56: kWh2Btu | AO56: 3412.141642
B57: Month 23 | C57: 100000 | D57: 40 | E57: 35000 | F57: 56.315 | G57: 135000 | H57: 0.85 | I57: 47.44850281 | J57: 0 | K57: =IF((J57*Reference!$H$83*Reference!$C$85*Reference!$H$84*Reference!$H$85/kWh2Btu)>0,(J57*Reference!$H$83*Reference!$C$85*Reference!$H$84*Reference!$H$85/kWh2Btu),"") ->  | L57: 0 | M57: 0 | N57: 10000 | O57: 13000000 | P57: 0.75 | Q57: 0.132 | R57: 3100 | S57: 0.002 | T57: 3100 | U57: 3300 | V57: 0.056 | W57: 3100 | X57: 7900 | Y57: 6020.2 | AM57: Btu2J | AO57: 1055.05585
B58: Month 24 | C58: 100000 | D58: 40 | E58: 35000 | F58: 56.315 | G58: 135000 | H58: 0.85 | I58: 47.44850281 | J58: 0 | K58: =IF((J58*Reference!$H$83*Reference!$C$85*Reference!$H$84*Reference!$H$85/kWh2Btu)>0,(J58*Reference!$H$83*Reference!$C$85*Reference!$H$84*Reference!$H$85/kWh2Btu),"") ->  | L58: 0 | M58: 0 | N58: 10000 | O58: 13000000 | P58: 0.75 | Q58: 0.132 | R58: 3100 | S58: 0.002 | T58: 3100 | U58: 3300 | V58: 0.056 | W58: 3100 | X58: 7900 | Y58: 6020.2
B59: 2-Year Total | C59: =SUM(C35:C58) -> 1800000 | D59: =IFERROR((D58*C58+D57*C57+D56*C56+D55*C55+D54*C54+D53*C53+D52*C52+D51*C51+D50*C50+D49*C49+D48*C48+D47*C47+D46*C46+D45*C45+D44*C44+D43*C43+D42*C42+D41*C41+D40*C40+D39*C39+D38*C38+D37*C37+D36*C36+D35*C35)/(C59),0) -> 40 | E59: =SUM(E35:E58) -> 630000 | F59: =IFERROR((F58*E58+F57*E57+F56*E56+F55*E55+F54*E54+F53*E53+F52*E52+F51*E51+F50*E50+F49*E49+F48*E48+F47*E47+F46*E46+F45*E45+F44*E44+F43*E43+F42*E42+F41*E41+F40*E40+F39*E39+F38*E38+F37*E37+F36*E36+F35*E35)/(E59),0) -> 56.315 | G59: =SUM(G35:G58) -> 2430000 | H59: =AVERAGE(H35:H58) -> 0.85 | I59: =AVERAGE(I35:I58) -> 47.44850281 | J59: =SUM(J35:J58) -> 0 | K59: 0 | L59: 0 | M59: 0 | N59: 480000 | O59: 234000000 | P59: =IFERROR(SUMPRODUCT(P35:P58,G35:G58)/G59,"") -> 0.7 | Q59: =AVERAGE(Q35:Q58) -> 0.132 | R59: =SUM(R35:R58) -> 55800 | S59: =SUMPRODUCT(R35:R58*S35:S58)/R59 -> 0.002 | T59: =SUM(T35:T58) -> 55900 | U59: =SUM(U35:U58) -> 59400 | V59: =AVERAGE(V35:V58) -> 0.056 | W59: =SUM(W35:W58) -> 55800 | X59: =SUM(X35:X58) -> 142200 | Y59: =SUM(Y34:Y58) -> 108463.4 | AM59: km2mi | AO59: 0.6213711922
B60: annual avg | E60: Mi -> | F60: 27.48313276 | G60: =G59/2 -> 1215000 | H60: =IF(K22="Standard", 80%, $H$59) -> 0.8 | I60: =I59*AO59 -> 29.48313276 | J60: <- Mi | P60: =P59 -> 0.7 | Q60: =Q59 -> 0.132 | R60: =R59/(R59+U59) -> 0.484375 | U60: =1-R60 -> 0.515625 | X60: =X59/2 -> 71100 | Y60: =Y59*264.1593 -> 28651615.82
E61: Km: -> | F61: =(SUMPRODUCT(C35:C58,D35:D58)+SUMPRODUCT(E35:E58,F35:F58))/(SUM(C35:C58)+SUM(E35:E58)) -> 44.22981481
B63: Section 4: Calculate Production Yields and Mass Allocation Ratio
B64: Step 4a: Select "Data" from the Header Menu above. Then Click the "Solver" icon menu above to the faright of the header. Ensure that the "Set Objective" refers to Cell E88, and is set to a value of 0.0. | F64: 0
B65: Step 4b: Do not change any of the constraints defined in the window. Then Click the "Solve" Button.
B66: Step 4c: The Solver will go through several iterations to find a solution. A new window "Solver Results" will open up. Solver will display the message that a solution has been found. | F66: 0
B67: Step 4d: Click OK. If a solution has not been found, then check the data for accuracy (Step 2), and then repeat Step 3 until a solution has been found, and all constriants and optimality conditions have been satisfied.
B68: Step 4e: If a solution has not still been found, then check the juice shares (fraction juice allocated to sugar production), and the fraction of sucrose in the cane juice that enters production. The level of sucrose (eta_j) could be lower due to process losses even if measured higher at the gate or after crush.
B69: Gopal-Kammen Model Parameters
B70: Mill-specific values for ethanol yield calculation and ethanol production modeling
B71: 4.1 ηj (tonnes of fermentable sugars in juice/tonne of cane) | G71: =$Q$60 -> 0.132
B72: 4.2 ηs (tonnes of sucrose in final sugar/tonne of sucrose into sugar factory) | G72: 0.6269811153
B73: 4.3 Sucrose in Molasses (tonnes sucrose in molasses/tonne of sugarcane) | G73: =G71*(1-G72) -> 0.04923849278
B74: 4.4 ηe (dry tonnes of EtOH/tonne of fermentable sugars into distillery) | G74: 0.4756850975
B75: 4.5 LHV of anhydrous EtOH (MMBtu/dry tonne EtOH) | G75: 25.545515
B76: 4.6 ms (tonnes of sucrose in final sugar/tonne of final sugar product) | G76: 0.99
B77: 4.7 mm (tonnes of fermentable sugars in std molasses/tonne of std molasses) | G77: 0.5
B78: Yield of Finished Sugar, Standard Molasses, and Ethanol | F78: Cane Juice-to-Molasses | G78: Cane Juice-to-Ethanol
B79: Fraction of sugarcane juice sent to finished sugar | F79: 1 | G79: 0
B80: Finished sugar yield (tonnes of finished sugar/tonne of cane) | F80: =F79*$G$71*$G$72/$G$76 -> 0.08359748204 | G80: =G79*$G$71*$G$72/$G$76 -> 0
B81: By-product molasses yield (tonnes of std molasses/tonnes of cane) | F81: =F79*$G$73/$G$77 -> 0.09847698557 | G81: =G79*$G$73/$G$77 -> 0
B82: EtOH yield (liters of EtOH/metric tonne cane) | F82: =$G$74*$G$71*(1-F79*$G$72)/(Reference!$D$81*$AO$48/$AO$49) -> 26.91863264 | G82: =$G$74*$G$71*(1-G79*$G$72)/(Reference!$D$81*$AO$48/$AO$49) -> 72.1642623
B83: EtOH yield (gal of EtOH/short ton cane) | F83: =F82/$AO$49 -> 7.111151904 | G83: =G82/$AO$49 -> 19.06378523
B84: EtOH yield (gal of EtOH/tonne cane) | F84: =F83*$AO$50 -> 7.838703178 | G84: =G83*$AO$50 -> 21.01422609
F85: Molasses-Ethanol | G85: Cane Juice-Ethanol
B86: Modeled ethanol production (dry gal) | F86: =F84*$P$60*$G$60 -> 6666817.053 | G86: =G84*(1-$P$60)*$G$60 -> 7659685.408
B87: Annual adjusted reported ethanol production (dry gal) | E87: =((SUMPRODUCT(T35:T58,(1-S35:S58))+SUMPRODUCT(W35:W58,(1-V35:V58)))*AO52)/2 -> 14326502.46
B88: Difference between reported and modeled | E88: =E87-(F86+G86) -> -0.0008353516459
B89: Modeled Annual Sugar Production (metric tonnes) | E89: =F80*$P$60*$G$60 -> 71099.65847
B90: Difference between reported and modeled Finished Sugar Production: | F90: =X59/2-E89 -> 0.3415283677 | G90: =ABS(F90) -> 0.3415283677
B91: 4.8 Mass Allocation Ratio for Upstream Emissions | E91: =G73/G71 -> 0.3730188847
B93: Section 5: Verify Fuel and Co-Product Production Information
B94: 5.1 Ethanol Volume from Cane Juice, dry gal | C94: =G86 -> 7659685.408 | D94: 5.3 Ethanol Volume from Molasses, dry gal | E94: =F86 -> 6666817.053 | F94: 5.5 Total Ethanol Volume, dry gal | G94: =F86+G86 -> 14326502.46 | H94: 5.7 Net Surplus Cogenerated Electricity Exported (kWh/yr) | I94: =(O59-N59)/2 -> 116760000 | J94: 5.9 Electricity Co-Product Credit (kWh/gal) (Molasses Feedstock) | K94: =AO37 -> 3.201123635
B95: 5.2 Juice-to-Ethanol yield (gal/wet tonne cane) | C95: =$G$84 -> 21.01422609 | D95: 5.4 Molasses-to-Ethanol yield (gal/wet tonne cane) | E95: =$F$84 -> 7.838703178 | F95: 5.6 Total Annual Finished Sugar Production, metric tons | G95: =X59/2 -> 71100 | H95: 5.8 Composite Electricity Co-Product Credit (kWh/gal) | I95: =IF($K$23="No", 0, $AO$39) -> 2.22313197 | J95: 5.10 Electricity Co-Product Credit (kWh/gal) (Cane Juice Feedstock) | K95: =AO38 -> 1.371910129
B97: Section 6: Verify Pathway Credits
B98: 6.1 Applicable Mechanization Credit (7) | C98: =IF(K22="Harvest Region Specific",H$59,IF(I21="Sao Paulo",80%,65%)) -> 0.8 | D98: 6.2 Composite Electricity Co-Product Credit (kWh/gal) | E98: =IF($K$23="No", 0, $AO$39) -> 2.22313197
B102: Select Regional Electricity Mix
B103: 1-U.S Ave Mix
B104: 2-User Defined Mix
B105: 3-CAMX Mix
B106: 4-NWPP Mix
B107: 5-AZNM Mix
B108: 6-RMPA Mix
B109: 7-MROW Mix
B110: 8-SPNO Mix
B111: 9-SPSO Mix
B112: 10-ERCT Mix
B113: 11-MROE Mix
B114: 12-SRMW Mix
B115: 13-SRMV Mix
B116: 14-RFCM Mix
B117: 15-RFCW Mix
B118: 16-SRTV Mix
B119: 17-SRSO Mix
B120: 18-NEWE Mix
B121: 19-NYUP Mix
B122: 20-RFCE Mix
B123: 21-NYLI Mix
B124: 22-NYCW Mix
B125: 23-SRVC Mix
B126: 24-FRCC Mix
B127: 25-AKMS Mix
B128: 26-AKGD Mix
B129: 27-HIOA Mix
B130: 28-HIMS Mix
B131: 29-Brazilian Mix
B132: 30-Canadian Mix
B133: CI Calculations
B134: Sugarcane Molasses-based Ethanol | E134: Value | G134: CI, gCO2e/MJ | H134: Sugarcane Juice-based Ethanol | M134: CI, gCO2e/MJ
B135: eGRID (Electricity Mix) region | E135: =I23 -> 29-Brazilian Mix | F135: Juice-to- Sugar Share | G135: =Calculator!P59 -> 0.7 | H135: eGRID (Electricity Mix) region | K135: =I23 -> 29-Brazilian Mix | L135: Juice-to-Fuel Share | M135: =1-G135 -> 0.3
B136: Feedstock Production | C136: Sugarcane Farming | H136: Feedstock Production | I136: Sugarcane Farming
C137: Farming Energy, Btu/metric tonne cane | E137: 95000 | G137: ='EF Tables'!AP43 -> 4.525406256 | I137: Farming Energy, Btu/metric tonne cane | K137: 95000 | M137: ='EF Tables'!AP44 -> 4.525406256
C138: Fertilizers and Agricultural Chemicals | G138: ='EF Tables'!Q37 -> 4.202793908 | I138: Fertilizers and Ag Chemicals | M138: ='EF Tables'!R37 -> 4.202793908
C139: N2O in Soil | G139: ='EF Tables'!AR33 -> 7.02960251 | I139: N2O in Soil | M139: ='EF Tables'!AR34 -> 7.02960251
C140: N content above and below ground, g N2/tonne cane | E140: 1036 | I140: N content above and below ground, g N2/tonne cane | K140: 1036
C141: Sugarcane Straw Burning in Field | G141: ='EF Tables'!J46 -> 10.23032884 | I141: Sugarcane Straw Burning in Field | M141: ='EF Tables'!J47 -> 10.23032884
C142: Sugarcane Transport to Mill | I142: Sugarcane Transport to Mill
D143: Cane transport by MDT, miles | E143: ='EF Tables'!D8 -> 2 | G143: ='EF Tables'!H15 -> 2.934260479 | J143: Cane transport by MDT, miles | K143: ='EF Tables'!D8 -> 2 | M143: ='EF Tables'!H16 -> 2.934260479
D144: Cane transport by HDDT, miles | E144: ='EF Tables'!C$8 -> 27.48313276 | J144: Cane transport by HDDT, miles | K144: ='EF Tables'!$C$8 -> 27.48313276
C145: Filtercake Transport to Cane Farm | I145: Filtercake Transport to Cane Farm
D146: Filtercake transport by HDDT, miles | E146: =SUM(E143:E144) -> 29.48313276 | G146: ='EF Tables'!E27 -> 0.007819780641 | J146: Filtercake transport by HDDT, miles | K146: =SUM(K143:K144) -> 29.48313276 | M146: ='EF Tables'!E28 -> 0.007819780641
C147: Co-product and Other Credits | I147: Co-product and Other Credits
D148: Surplus Cogenerated Electricity Export, kWh/gal | E148: =K94 -> 3.201123635 | G148: ='EF Tables'!Q75 -> -7.082341899 | J148: Surplus Cogenerated Electricity Export, kWh/gal | K148: =K95 -> 1.371910129 | M148: ='EF Tables'!R75 -> -3.035289385
D149: Mechanized Harvesting (%) | E149: =C98 -> 0.8 | G149: =-'EF Tables'!J46*Calculator!E149 -> -8.184263068 | J149: Mechanized Harvesting (%) | K149: =C98 -> 0.8 | M149: =-'EF Tables'!J47*Calculator!C98 -> -8.184263068
B150: Ethanol Production | C150: Sugar Production (gCO2e/wet tonne cane) | E150: ='EF Tables'!C48 -> 3700 | G150: ='EF Tables'!Q48 -> 2.186339552 | I150: Sugar Production (gCO2e/wet tonne cane) | K150: ='EF Tables'!C48 -> 3700 | M150: =0 -> 0
C151: Ethanol Production | H151: Ethanol Production | I151: Ethanol Production
C152: Total feedstock used, metric tonnes cane | E152: =$G$59*P59/2 -> 850500 | I152: Total feedstock used, metric tonnes cane | K152: =($G$59*(1-P59))/2 -> 364500
C153: Total undenatured ethanol, gallons | E153: =F86 -> 6666817.053 | I153: Total undenatured ethanol, gallons | K153: =G86 -> 7659685.408
C154: Ethanol Yield, gal ethanol / tonne cane | E154: =E95 -> 7.838703178 | I154: Ethanol Yield, gal ethanol / tonne cane | K154: =C95 -> 21.01422609
C155: Residual Oil (10% Lubricant Burned), Btu/gal EtOH | E155: 300 | G155: ='EF Tables'!Q70 -> 0.1230449656 | I155: Residual Oil (10% Lubricant Burned), Btu/gal EtOH | K155: 300 | M155: ='EF Tables'!R70 -> 0.1230449656
C156: Biomass (HHV), tons (See Non-Biogenic Emissions Below) | I156: Biomass (HHV), tons (See Non-Biogenic Emissions Below)
D157: Average Moisture, % | J157: Average Moisture, %
C158: Electricity, kWh/gal ethanol | E158: 0.007142 | I158: Electricity, kWh/gal ethanol | K158: 0.007142
C159: Non-biogenic (CH4/N2O) in Bagasse Combustion | G159: ='EF Tables'!Q67 -> 2.313303689 | I159: Non-biogenic (CH4/N2O) in Bagasse Combustion | M159: ='EF Tables'!R67 -> 2.313303689
C160: Total Plant Energy Consumption, Btu/gal | E160: =E155+E158*3412.96 -> 324.3753603 | I160: Total Plant Energy Consumption, Btu/gal | K160: =K155+K158*3412.96 -> 324.3753603
C161: Chemicals Usage (Lime, g/tonne cane) | E161: 880 | G161: ='EF Tables'!Q71 -> 0.6709821322 | I161: Chemicals Usage (Lime, g/tonne cane) | K161: 880 | M161: ='EF Tables'!R71 -> 0.6709821322
C162: Ethanol Transport and Distribution | G162: =SUM('EF Tables'!Q95:Q103) -> 8.847335144 | I162: Ethanol Transport and Distribution | M162: =SUM('EF Tables'!R95:R103) -> 8.847335144
D163: From Ethanol Plant to Port | E163: Mode: Railcar | F163: =$E$26 -> By Rail to or towards Port | J163: From Ethanol Plant to Port | K163: Mode: Railcar | L163: =$E$26 -> By Rail to or towards Port
D164: Miles | E164: =E27/1.609 -> 200.1243008 | J164: Miles | K164: =$E$27/1.609 -> 200.1243008
D165: From Ethanol Plant to Port | E165: Mode: Pipeline | F165: =$G$26 -> By Pipeline to or towards Port | J165: From Ethanol Plant to Port | K165: Mode: Pipeline | L165: =$G$26 -> By Pipeline to or towards Port
D166: Miles | E166: =G27/1.609 -> 200.1243008 | J166: Miles | K166: =$G$27/1.609 -> 200.1243008
D167: From Ethanol Plant to Brazil Port | E167: Mode: HDD Truck | F167: =$C$26 -> By HDDT from Ethanol Plant to Port | J167: From Ethanol Plant to Brazil Port | K167: Mode: HDD Truck | L167: =$C$26 -> By HDDT from Ethanol Plant to Port
D168: Miles | E168: =$C$27/1.609 -> 262.2747048 | J168: Miles | K168: =$C$27/1.609 -> 262.2747048
D169: From Brazil Port to California Port | E169: Mode: Ocean Tanker | F169: 1 | J169: From Brazil Port to California Port | K169: Mode: Ocean tanker | L169: 1
D170: Miles | E170: =$I$27/1.609 -> 9790 | J170: Miles | K170: =$I$27/1.609 -> 9790
D171: From California Port to Blending Terminal | E171: Mode: HDD Truck | F171: 1 | J171: From California Port to Blending Terminal | K171: Mode: HDD Truck | L171: 1
D172: Miles | E172: 40 | J172: Miles | K172: 40
D173: California Blending Terminal to Refueling Station | E173: Mode: HDD Truck | F173: 1 | J173: California Blending Terminal to Refueling Station | K173: Mode: HDD Truck | L173: 1
D174: Miles | E174: 50 | J174: Miles | K174: 50
C175: Denaturant, g/MJ | G175: ='EF Tables'!C131 -> 2.254756716 | I175: Denaturant, g/MJ | M175: ='EF Tables'!D131 -> 2.184793909
C176: Indirect Land Use, g/MJ | G176: 11.8 | H176: Composite CI (gCO2e/MJ) | I176: Indirect Land Use, g/MJ | M176: 11.8
C177: Total Well-to-Tank CI, g/MJ | G177: =SUM(G136:G176) -> 41.859369 | H177: =(G177*E153+M177*K153)/(E153+K153) -> 42.81679618 | I177: Total Well-to-Tank CI, g/MJ | M177: =SUM(M136:M176) -> 43.65011915
B179: Footnotes: | AL179: =2/AO59 -> 3.218688
B180: (1) Filter Cake is assumed to be returned to the fields from where the sugarcane was harvested. Hence it is the weighter average distance of all sugarcane procured from Self-owned and Partnership sugarcane farms.
B182: (2) The fraction of sugarcane that was mechanically harvested applies to the 9-month or 12-month annual sugarcane harvest cycle. The annual mechanized harvesting fraction must be corroborated by
B183: ARB Staffs for the harvest region, or be based upon remotely-sensed, GIS-based imagery that evaluates a burn-area fraction for the entire harvest season.
B184: An annual-average (1 - burn area fraction) for the most current harvest cycle ending December 31 may be used in lieu for the monthly average.
B186: (3) The Juice-to-Sugar Share is the monthly weighted average fraction of juice that is directed to Table or Finished Sugar production. Preferably, this is measured after the cane has been crushed,
B187: and the juice has been treated for pH and decanted. The juice-to sugar share is then the quantity of juice sent to sugar production or factory / total juice crushed after losses (mass basis).
B189: (4) The level of sucrose in the juice is a proxy for all sugars that can be crystallized or fermented into table sugar and ethanol, respectively. The percentage sucrose in the pre-treated juice is measured
B190: after the pH of the juice has been adjusted, the juice has been decanted, and enters the table sugar or ethanol production process.
B191: This level of sucrose is not the same as the sucrose measured in the juice extracted immediately after the sugarcane crush (as production losses, and some dilution of the juice are expected).
B193: (5) Adjusted Anhydrous and Hydrous Ethanol Production: The anhydrous and hydrous ethanol produced is adjusted by the estimated amount of ethanol produced from externally acquired molasses.
B195: (6) Note: To calculate CI after all data entered, go to the "Data" tab in the ribbon above, click "Solver", then click "Solve" and accept the dialogue box after it finds solution.
B197: (7) If a Site-Specific fraction of Mechanized Harvesting is selected, it must be approved by ARB Staffs prior to its use to determine the CI of the fuel being produced. The fraction must be supported by
B198: GIS-based, remotely-sensed, burn-area imagery obtained from sources such as Landsat or equivalent earth observing satellites. The mechanization credit is reported as an Annual Average.

Sheet EF Tables
A1: References for Sugarcane Ethanol Pathways
A3: I. | B3: Factors for Sugarcane Transport to Mill
C5: Sugarcane Transport to Mill
C6: HDD (grams/ton-mile cane transported) | D6: MDD (grams/ton-mile cane transported) | E6: HDD (grams/tonne cane transported) | F6: MDD (grams/tonne cane transported) | G6: Total (grams/tonne cane transported) | H6: Total (gCO2/tonne cane transported)
C8: =Calculator!$F$60 -> 27.48313276 | D8: 2
B9: VOC | C9: 0.03764382804 | D9: 0.08033247198 | E9: =$C$8*C9*1000/(2000*0.4536) -> 1.140399387 | F9: =$D$8*D9*1000/(2000*0.4536) -> 0.177099806 | G9: =F9+E9 -> 1.317499193 | H9: =G9*3.12 -> 4.110597482
B10: CO | C10: 0.1305251454 | D10: 0.2785425428 | E10: =$C$8*C10*1000/(2000*0.4536) -> 3.954188602 | F10: =$D$8*D10*1000/(2000*0.4536) -> 0.6140708616 | G10: =F10+E10 -> 4.568259463 | H10: =G10*1.57 -> 7.172167357
B11: CH4 | C11: 0.1802366031 | D11: 0.3846275106 | E11: =$C$8*C11*1000/(2000*0.4536) -> 5.460170295 | F11: =$D$8*D11*1000/(2000*0.4536) -> 0.8479442473 | G11: =F11+E11 -> 6.308114543 | H11: =G11*25 -> 157.7028636
B12: N2O | C12: 0.00202299619 | D12: 0.004317103048 | E12: =$C$8*C12*1000/(2000*0.4536) -> 0.06128557417 | F12: =$D$8*D12*1000/(2000*0.4536) -> 0.009517422946 | G12: =F12+E12 -> 0.07080299711 | H12: =G12*298 -> 21.09929314
B13: CO2 | C13: 136.4510569 | D13: 291.1885236 | E13: =$C$8*C13*1000/(2000*0.4536) -> 4133.710884 | F13: =$D$8*D13*1000/(2000*0.4536) -> 641.9500078 | G13: =F13+E13 -> 4775.660891 | H13: =G13 -> 4775.660891
G14: Total CO2e/tonne cane | H14: =SUM(H9:H13) -> 4965.745813
A15: II. | B15: Factors for Filtercake Transport to Fields | G15: Total CO2e/MJ (mol feedstock) | H15: =Calculator!E91*H14/(Calculator!E95*76330*1055.06/10^6) -> 2.934260479
G16: Total CO2e/MJ (cane juice feedstock) | H16: =H14/(Calculator!C95*76330*1055.06/10^6) -> 2.934260479
B17: Filtercake Application Rate | C17: Filtercake Transport to the Cane Fields
B18: 2.87 | C18: HDD (grams/ton-mile cane transported) | D18: HDD (grams/tonne cane transported) | E18: Total (gCO2/tonne cane transported)
B19: (kg/MT Cane)
C20: =C8+D8 -> 29.48313276
B21: VOC | C21: 0.03764382804 | D21: =(B$18/1000)*$C$20*C21*1000/(2000*0.4536) -> 0.003511124782 | E21: =D21*3.12 -> 0.01095470932
B22: CO | C22: 0.1305251454 | D22: =(B$18/1000)*$C$20*C22*1000/(2000*0.4536) -> 0.01217437483 | E22: =D22*1.57 -> 0.01911376848
B23: CH4 | C23: 0.1802366031 | D23: =(B$18/1000)*$C$20*C23*1000/(2000*0.4536) -> 0.01681107466 | E23: =D23*25 -> 0.4202768666
B24: N2O | C24: 0.00202299619 | D24: =(B$18/1000)*$C$20*C24*1000/(2000*0.4536) -> 0.0001886894194 | E24: =D24*298 -> 0.05622944699
B25: CO2 | C25: 136.4510569 | D25: =(B$18/1000)*$C$20*C25*1000/(2000*0.4536) -> 12.72709797 | E25: =D25 -> 12.72709797
E26: =SUM(E21:E25) -> 13.23367276 | F26: Total CO2e/tonne cane
A27: III. | B27: Factors for Sugarcane Farming, Fertilizer, Herbicide/Insecticide Use, and Sugarcane/Filtercake Transport, and Harvesting. | E27: =Calculator!$E$91*E26/(Calculator!E$95*76330*1055.06/10^6) -> 0.007819780641 | F27: Total CO2e/MJ (mol feedstock)
E28: =E26/(Calculator!C$95*76330*1055.06/10^6) -> 0.007819780641 | F28: Total CO2e/MJ (cane juice feedstock) | Q28: AGGREGATION WORK AREA
D30: Sugarcane Farming, Fertilizer, and Herbicide/Insecticide Use (grams/tonne cane) | Q30: Molasses CI (g CO2/MJ) | R30: Juice-to-Ethanol CI (gCO2e/MJ) | S30: Cane transport (HDD) | V30: miles | W30: filter cake transport | Y30: =$C$8+2 -> 29.48313276 | Z30: miles | AA30: Mecha harvesting | AC30: =Calculator!$C$98 -> 0.8
C31: Sugarcane Farming | D31: Nitrogen | E31: P2O5 | F31: K2O | G31: CaCO3 | H31: Herbicide | I31: Insecticide | J31: Sugarcane Straw Field Burning | K31: Mechanized Harvesting | L31: Sugarcane Transportation | M31: Sugarcane Filtercake Transportation | N31: Feedstock Total (g/tonne) | P31: Fertilizer, and Herbicide/Insecticide Only Total (g/tonne) | AP31: Disaggregated Impacts
B32: Total Emissions: grams/mmBtu of fuel throughput, except as noted | C32: Per tonne | D32: 800 | E32: 300 | F32: 1000 | G32: 5200 | H32: 45 | I32: 2.5 | J32: Per tonne | S32: HDD per mile | T32: MD (2miles) | W32: per ton-mile | AP32: Cane Farming Only | AR32: N2O in Soil
B33: VOC | C33: 10.43940657 | D33: 5.24813897 | E33: 0.08087144375 | F33: 0.09539607302 | G33: 0.02141936017 | H33: 0.09016799512 | I33: 0.005960593878 | J33: 1499.4 | K33: =-J33*$AC$30 -> -1199.52 | L33: =G9 -> 1.317499193 | M33: =D21 -> 0.003511124782 | N33: =SUM(C33:M33) -> 317.1823713 | P33: =SUM(D33:I33) -> 5.541954436 | Q33: Sugarcane Farming | AP33: =(C33+C43)*3.12 -> 90.5251575 | AR33: =$D$44*298*Calculator!$E$91/(Calculator!$E$95*76330*1055.06/10^6) -> 7.02960251 | AS33: gCO2e/MJ (Molasses Feedstock)
B34: CO | C34: 89.51958833 | D34: 5.984816546 | E34: 0.2826944503 | F34: 0.4877180271 | G34: 0.06681156774 | H34: 0.6065450712 | I34: 0.05637218203 | J34: 19706.4 | K34: =-J34*$AC$30 -> -15765.12 | L34: =G10 -> 4.568259463 | M34: =D22 -> 0.01217437483 | N34: =SUM(C34:M34) -> 4042.86498 | P34: =SUM(D34:I34) -> 7.484957845 | Q34: =AP43 -> 4.525406256 | R34: =AP44 -> 4.525406256 | AP34: =C34*1.57 -> 140.5457537 | AR34: =$D$44*298/(Calculator!$C$95*76330*1055.06/10^6) -> 7.02960251 | AS34: gCO2e/MJ (Cane Juice Feedstock)
B35: NOx
B36: PM10 | Q36: Fertilizer, and Herbicide/Insecticide Use
B37: PM2.5 | Q37: =Calculator!E91*$P$42/(Calculator!F84*76330*1055.06/10^6) -> 4.202793908 | R37: =$P$42/(Calculator!G84*76330*1055.06/10^6) -> 4.202793908
B38: SOx | AR38: Sugarcane Farming, Fertilizer, and Herbicide/Insecticide Use (gCO2e/MJ)
B39: CH4 | C39: 28.45057416 | D39: 28.87324934 | E39: 0.5165498654 | F39: 1.01897179 | G39: 0.2350280044 | H39: 1.681882465 | I39: 0.1119993669 | J39: 578.34 | K39: =-J39*$AC$30 -> -462.672 | L39: =G11 -> 6.308114543 | M39: =D23 -> 0.01681107466 | N39: =SUM(C39:M39) -> 182.8811806 | P39: =SUM(D39:I39) -> 32.43768083 | Q39: N2O in Soil | AP39: =C39*1.57 -> 44.66740144
B40: N2O | C40: 0.2554420895 | D40: 3.243344508 | E40: 0.005000971416 | F40: 0.009930655188 | G40: 0.000728246363 | H40: 0.01570124183 | I40: 0.0008947275636 | J40: 14.994 | K40: =-J40*$AC$30 -> -11.9952 | L40: =G12 -> 0.07080299711 | M40: =D24 -> 0.0001886894194 | N40: =(SUM(C40:M40)+D44) -> 46.52173427 | P40: =SUM(D40:I40) -> 3.27560035 | Q40: =AR33 -> 7.02960251 | R40: =AR34 -> 7.02960251 | AP40: =C40*298 -> 76.12174269
B41: CO2 | C41: 7306.634251 | D41: 2224.719686 | E41: 181.1669138 | F41: 371.2807167 | G41: 67.47255084 | H41: 667.7790964 | I41: 42.29861526 | J41: 355469.235 | K41: =-J41*$AC$30 -> -284375.388 | L41: =G13 -> 4775.660891 | M41: =D25 -> 12.72709797 | N41: =(SUM(C41:M41)+D42+F42+J42+K42) -> 9945.28282 | P41: =SUM(D41:I41)+D42+F42 -> 5296.413579 | AP41: =C41 -> 7306.634251
B42: CO2 from Land use change | D42: 616 | E42: CO2 from urea use | F42: 1125.696 | G42: CO2 from CaCO3 use | J42: -392700 | K42: =-J42*$AC$30 -> 314160 | L42: CO2 uptaken from the air | O42: Total gCO2e/tonne | P42: =P33*3.12+P34*1.57+P39*25+P40*298+P41 -> 7112.526786 | Q42: Cane Transport | AP42: =SUM(AP33:AP41) -> 7658.494307 | AQ42: g/m.t.
B43: VOC from bulk terminal | C43: 18.57506699 | D43: 35.16196838 | E43: NO from N fertilizer and above/below ground biomass | Q43: =H15 -> 2.934260479 | R43: =H16 -> 2.934260479 | AP43: =Calculator!E91*AP42/(Calculator!E95*76330/10^6)/1055.06 -> 4.525406256 | AQ43: gCO2e/MJ (Molasses Feedstock)
B44: VOC from refueling station | D44: 39.92090015 | E44: N2O from N fertilizer and above/below ground biomass | Q44: Filtercake Transport | AP44: =AP42/(Calculator!C95*76330/10^6)/1055.06 -> 4.525406256 | AQ44: gCO2e/MJ (Sugacane Juice Feeedstock)
I45: Total Straw Bunring gCO2e/tonne cane: | J45: =J33*3.12+J34*1.57+J39*25+J40*298+J41+J42 -> 17313.123 | Q45: =E27 -> 0.007819780641 | R45: =E28 -> 0.007819780641
A46: IV. | B46: Sugar Production Emissions | I46: Total gCO2e/MJ (mol feedstock): | J46: =Calculator!E91*J45/(Calculator!E95*76330*1055.06/10^6) -> 10.23032884 | K46: =-'EF Tables'!J46*Calculator!$C$98 -> -8.184263068
B47: Sugar Production | I47: Total gCO2e/MJ (cane juice feedstock): | J47: =$J$45/(Calculator!$C95*76330*1055.06/10^6) -> 10.23032884 | K47: =-'EF Tables'!J47*Calculator!$C$98 -> -8.184263068 | Q47: Sugar Production Emissions | S47: 0.90718474 | T47: T2MT
B48: gCO2e/wet tonne cane | C48: 3700 | Q48: =($C$48/Calculator!$F$84/Calculator!$AO$54)*Calculator!$E$91 -> 2.186339552 | R48: 0 | S48: 0.001102311311 | T48: kg2T
A50: V. | B50: Sugarcane Ethanol Production | Q50: Straw Burning Emissions | S50: =5*30%/6/87.1*1000 -> 2.870264064 | T50: Application (kg dry filtercake or L vinasse/MT sugarcane)
C51: per gallon | M51: Sugarcane Bagasse | Q51: =J46 -> 10.23032884 | R51: =J47 -> 10.23032884
B52: Total Emissions: grams/mmBtu of fuel throughput, except as noted | C52: Residual oil | D52: Bagasse, Per dry ton | E52: Bagasse, per gallon | F52: Lime Use, per wet tonne | G52: Lime Use, per gallon | H52: Ethanol Production: Non-Combustion Emissions | I52: Ethanol Production | M52: Small Industrial Boiler | N52: Sugarcane Bagasse IPCC Emissions (g/dry ton) | AC52: Sugarcane Bagasse (grams/mmBtu fuel burned)
B53: VOC | C53: 0.0002055675388 | D53: =M53*Reference!$C$45/10^6 -> 350.468508 | E53: =D53*$V$54 -> 2.573759121 | F53: 0.06792342466 | G53: =F53/Calculator!$G$84 -> 0.003232259155 | H53: 2.239 | I53: =C53+E53+G53 -> 2.577196948 | M53: =AC54 -> 28.30519957 | O53: VOC | Q53: Mechanized Harvesting Credit | V53: dry ton bagasse/gallon | AC53: Small Industrial Boiler*
B54: CO | C54: 0.001531354339 | D54: =M54*Reference!$C$45/10^6 -> 2402.080947 | E54: =D54*$V$54 -> 17.64032319 | F54: 0.7290415977 | G54: =F54/Calculator!$G$84 -> 0.03469276455 | I54: =C54+E54+G54 -> 17.67654731 | M54: =AC55 -> 194.0013983 | O54: CO | Q54: =K46 -> -8.184263068 | R54: =K47 -> -8.184263068 | V54: =1/Calculator!$G$84*(1-Reference!$C$85)/$S$47*Reference!$C$84 -> 0.007343767165 | AB54: VOC | AC54: 28.30519957
B55: NOx | AB55: CO | AC55: 194.0013983
B56: PM10 | H56: 0.856 | AB56: NOx | AC56: 76.411
B57: PM2.5 | H57: =H56*17% -> 0.14552 | AB57: PM10 | AC57: 86.599
B58: SOx | AB58: PM2.5 | AC58: 43.2995
B59: CH4 | C59: 0.003146316486 | D59: =M61*Reference!$C$45/10^6 -> 391.883062 | E59: =D59*$V$54 -> 2.877897963 | F59: 0.698446134 | G59: =F59/Calculator!$G$84 -> 0.033236824 | I59: =C59+E59+G59 -> 2.914281104 | M59: 5.975331 | AB59: SOx | AC59: 41.97743027
B60: N2O | C60: 5.670130886e-05 | D60: =M62*Reference!$C$45/10^6 -> 52.25107494 | E60: =D60*$V$54 -> 0.3837197285 | F60: 0.004234143235 | G60: =F60/Calculator!$G$84 -> 0.0002014893728 | I60: =C60+E60+G60 -> 0.3839779191 | M60: 14.115637 | AB60: BC | AC60: 5.975331
B61: CO2 | C61: 2.827292713 | D61: =M63*Reference!$C$45/10^6 -> 1534152.623 | E61: =D61*$V$54 -> 11266.45966 | F61: 1114.867893 | G61: =F61/Calculator!$G$84 -> 53.05300747 | I61: =C61+E61+G61 -> 11322.33996 | M61: 31.65 | N61: =M61*Reference!$C$45/10^6 -> 391.883062 | O61: CH4 | AB61: OC | AC61: 14.115637
B62: CO2 from Land use change | I62: =H62*V54 -> 0 | J62: CO2 credit from biomass burning | M62: 4.22 | N62: =M62*Reference!$C$45/10^6 -> 52.25107494 | O62: N2O | AB62: CH4 | AC62: 31.65
B63: VOC from bulk terminal | M63: 123904.1317 | O63: CO2 | AB63: N2O | AC63: 4.22
B64: VOC from refueling station | F64: 0 | AB64: CO2 | AC64: 123904.1317
F65: 0 | Q65: Non-biogenic GHG emissions from sugarcane bagassee combustion | T65: GWP | AB65: See CA-GREETv3.0-75.xlsx, Worksheet "EF".
B66: Non-biogenic GHG emissions from sugarcane bagassee combustion | D66: (grams/mmBtu fuel burned) | F66: 0 | G66: Pollutant Emissions (grams for total cane) | H66: Emissions (gCO2e/total cane throughput) | J66: Allocated to Cane Molasses | K66: Allocated to Juice-EtOH | Q66: Allocated to Cane Molasses | R66: Allocated to Juice-EtOH | S66: VOC | T66: 3.116666667
B67: CH4 | D67: =$AC62 -> 31.65 | F67: 0 | G67: =D67*(Reference!$H$83/10^6)*Reference!$C$84*Reference!$C$85*Calculator!$G$60 -> 73479310.12 | H67: =G67*$T$68 -> 1836982753 | I67: gCO2 | J67: =H69*Calculator!P60*Calculator!E91 -> 1242000871 | K67: =H69*(1-Calculator!P60) -> 1426968203 | Q67: =$H$69*Calculator!$P$60*(1-eta_s)/(Calculator!F86*Calculator!$AO$54) -> 2.313303689 | R67: =Q67 -> 2.313303689 | S67: CO | T67: 1.571428571
B68: N2O | D68: =$AC63 -> 4.22 | G68: =D68*(Reference!$H$83/10^6)*Reference!$C$84*Reference!$C$85*Calculator!$G$60 -> 9797241.35 | H68: =G68*T$69 -> 2919577922 | I68: gal Ethanol | J68: =Calculator!E94 -> 6666817.053 | K68: =Calculator!C94 -> 7659685.408 | S68: CH4 | T68: 25
H69: =SUM(H67:H68) -> 4756560675 | I69: g CO2e/MJ | J69: =J67/(J68*76330*1055.06/10^6) -> 2.31329459 | K69: =K67/(K68*76330*1055.06/10^6) -> 2.31329459 | L69: OK | S69: N2O | T69: 298
B70: Residual Oil | P70: Residual Oil | Q70: =0.1230449655856 -> 0.1230449656 | R70: =Q70 -> 0.1230449656
B71: Lime Use | G71: 14.10017023 | P71: Lime Use | Q71: =G71/Calculator!$G$84 -> 0.6709821322 | R71: =Q71 -> 0.6709821322
Q74: Electricity Co-Product Credit
A75: VI. | B75: Surplus Cogenerated Electricity Export Credit | F75: Co-Product Credit: (Btu/gal) | G75: =(-Calculator!K$94)*kWh2Btu -> -10922.68726 | H75: =(-Calculator!K$95)*kWh2Btu -> -4681.151681 | Q75: =SUM(G78:G86) -> -7.082341899 | R75: =SUM(H78:H86) -> -3.035289385
G76: Molasses Feedstock After Mass Allocation | H76: Sugarcane Juice Feedstock
C77: g/gal Mol EtOH | D77: g/gal Juice EtOH | E77: g/mmBtu Mol EtOH | F77: g/mmBtu Juice EtOH | G77: g/MJ Mol EtOH | H77: g CO2e/MJ Juice EtOH
B78: VOC | C78: =$G$75*(1-Calculator!$I$22)*'EF Tables'!$G$153/10^6 -> -0.0878320589 | D78: =$H$75*(1-Calculator!$I$22)*'EF Tables'!$G$153/10^6 -> -0.03764231096 | E78: =C78/EtOH_LHV*10^6*$U$84 -> -1.151269095 | F78: =D78/EtOH_LHV*10^6*$U$84 -> -0.4934010408 | G78: =E78*$T$66/Btu2J -> -0.003400883482 | H78: =F78*$T$66/Btu2J -> -0.001457521492
B79: CO | C79: =$G$75*(1-Calculator!$I$22)*'EF Tables'!$G$154/10^6 -> -0.5146958651 | D79: =$H$75*(1-Calculator!$I$22)*'EF Tables'!$G$154/10^6 -> -0.2205839422 | E79: =C79/EtOH_LHV*10^6*$U$84 -> -6.746436897 | F79: =D79/EtOH_LHV*10^6*$U$84 -> -2.891330099 | G79: =E79*$T$67/Btu2J -> -0.01004832464 | H79: =F79*$T$67/Btu2J -> -0.004306424846
B80: NOx | D80: 0
B81: PM10 | D81: 0
B82: PM2.5
B83: SOx
B84: CH4 | C84: =$G$75*(1-Calculator!$I$22)*'EF Tables'!$G$159/10^6 -> -1.46872267 | D84: =$H$75*(1-Calculator!$I$22)*'EF Tables'!$G$159/10^6 -> -0.6294525728 | E84: =C84/EtOH_LHV*10^6*$U$84 -> -19.25145602 | F84: -8.250624009 | G84: =E84*$T$68/Btu2J -> -0.4561714913 | H84: =F84*$T$68/Btu2J -> -0.1955020677 | S84: Ethanol T&D loss factor | U84: 1.000504498
B85: N2O | C85: =$G$75*(1-Calculator!$I$22)*'EF Tables'!$G$160/10^6 -> -0.0293308887 | D85: =$H$75*(1-Calculator!$I$22)*'EF Tables'!$G$160/10^6 -> -0.01257038087 | E85: -0.384458091 | F85: -0.1647677533 | G85: =E85*$T$69/Btu2J -> -0.1085899965 | H85: =F85*$T$69/Btu2J -> -0.04653856995
B86: CO2 | C86: =$G$75*(1-Calculator!$I$22)*'EF Tables'!$G$161/10^6 -> -523.5292608 | D86: =$H$75*(1-Calculator!$I$22)*'EF Tables'!$G$161/10^6 -> -224.3696832 | E86: -6862.221675 | F86: -2940.952146 | G86: =E86/Btu2J -> -6.504131203 | H86: =F86/Btu2J -> -2.787484801
F87: Total Credit gCO2e/MJ | G87: =SUM(G78:G86) -> -7.082341899 | H87: =SUM(H78:H86) -> -3.035289385
A90: VII. | B90: Ethanol Transportation and Distribution
C91: Ethanol produced in Brazil, and used in U.S. | S91: Ethanol transport in Brazil | V91: Brazilian port to US
B92: Distance Transported (mi) | C92: Pipeline | D92: Rail | E92: Truck | F92: Ocean Tanker | G92: Barge | H92: Pipeline | I92: Rail | J92: Truck | K92: Truck | S92: Pipeline | T92: Rail | U92: Truck | V92: Ocean Tanker | W92: Barge | X92: Pipeline | Y92: Rail | Z92: Truck | AA92: Truck
C93: =Calculator!G27/1.609 -> 200.1243008 | D93: =Calculator!E27/1.609 -> 200.1243008 | E93: =Calculator!C27/1.609 -> 262.2747048 | F93: =Calculator!I27/1.609 -> 9790 | J93: =Calculator!K26 -> 40 | K93: =Calculator!K27 -> 50 | S93: 0 | T93: 0 | U93: =Calculator!C27*Calculator!$AO$59 -> 262.2186431 | V93: =Calculator!I27*Calculator!$AO$59 -> 9787.907371 | Z93: 40 | AA93: 50
B94: Pollutant | C94: Total Emissions: grams/mmBtu fuel transported | L94: Total Ethanol T&D | Q94: Total Ethanol T&D | U94: per mile | V94: per mile
B95: VOC | C95: =$C$93*C110 -> 0.02326237885 | D95: =$D$93*D110 -> 0.1606172273 | E95: =$E$93*E110 -> 0.5766312586 | F95: =$F$93*F110 -> 5.254539001 | J95: =$J$93*J110 -> 0.0879565837 | K95: =$K$93*K110 -> 0.1099457296 | L95: =SUM(C95:K95) -> 6.212952179 | Q95: =L95*T66/Btu2J -> 0.01835324733 | R95: =Q95 -> 0.01835324733 | U95: 0.002176647858 | V95: 0.0005366669232
B96: CO | C96: =$C$93*C111 -> 0.1489310388 | D96: =$D$93*D111 -> 0.5295784495 | E96: =$E$93*E111 -> 1.90143133 | F96: =$F$93*F111 -> 11.93092532 | J96: =$J$93*J111 -> 0.2900911885 | K96: =$K$93*K111 -> 0.3626139856 | L96: =SUM(C96:K96) -> 15.16357131 | Q96: =L96*T67/Btu2J -> 0.02258503111 | R96: =Q96 -> 0.02258503111 | U96: 0.007547247262 | V96: 0.001229277788
U97: 0.02027944682 | V97: 0.01353836415
U98: 0.0004465480813 | V98: 0.00115204679
U99: 0.0003998330435 | V99: 0.001059569617
U100: 0.002441479206 | V100: 9.274313588e-05
B101: CH4 | C101: =$C$93*C112 -> 0.3601500862 | D101: =$D$93*D112 -> 0.4783098607 | E101: =$E$93*E112 -> 4.706926139 | F101: =$F$93*F112 -> 10.64880796 | J101: =$J$93*J112 -> 0.7181957633 | K101: =$K$93*K112 -> 0.8977447041 | L101: =SUM(C101:K101) -> 17.81013451 | Q101: =L101*T68/Btu2J -> 0.4220187613 | R101: =Q101 -> 0.4220187613 | U101: 0.01042167166 | V101: 0.0006638772167
B102: N2O | C102: =$C$93*C113 -> 0.00888033543 | D102: =$D$93*D113 -> 0.005828466964 | E102: =$E$93*E113 -> 0.009077064084 | F102: =$F$93*F113 -> 0.1353676875 | J102: =$J$93*J113 -> 0.001384397505 | K102: =$K$93*K113 -> 0.001730496882 | L102: =SUM(C102:K102) -> 0.1622684483 | Q102: =L102*T69/Btu2J -> 0.04583264251 | R102: =Q102 -> 0.04583264251 | U102: 0.0001169740314 | V102: 1.361189341e-05
B103: CO2 | C103: =$C$93*C114 -> 125.4551157 | D103: =$D$93*D114 -> 216.306429 | E103: =$E$93*E114 -> 2012.795393 | F103: =$F$93*F114 -> 5752.257295 | J103: =$J$93*J114 -> 307.02975 | K103: =$K$93*K114 -> 383.7871875 | L103: =SUM(C103:K103) -> 8797.63117 | Q103: =L103/Btu2J -> 8.338545462 | R103: =Q103 -> 8.338545462 | U103: 7.889896333 | V103: 0.5859885052
B105: VOC from bulk terminal | J105: NA
B106: VOC from refueling station | J106: NA
B107: Total Emissions: grams/mmBtu fuel transported
B108: Mode: | C108: Pipeline | D108: Rail | E108: Truck | F108: Ocean Tanker
C109: per mile | D109: per mile | E109: per mile | F109: per mile | J109: per mile | K109: per mile
B110: VOC | C110: 0.0001162396509 | D110: 0.0008025873253 | E110: 0.002198577476 | F110: 0.0005367251278 | J110: 0.002198914592 | K110: 0.002198914592
B111: CO | C111: 0.0007441926753 | D111: 0.002646247594 | E111: 0.007249770165 | F111: 0.001218684915 | J111: 0.007252279712 | K111: 0.007252279712
B112: CH4 | C112: 0.001799631952 | D112: 0.002390063869 | E112: 0.01794655014 | F112: 0.001087722979 | J112: 0.01795489408 | K112: 0.01795489408
B113: N2O | C113: 4.437409847e-05 | D113: 2.912423399e-05 | E113: 3.460899552e-05 | F113: 1.382713866e-05 | J113: 3.460993763e-05 | K113: 3.460993763e-05
B114: CO2 | C114: 0.6268859665 | D114: 1.080860386 | E114: 7.674378642 | F114: 0.5875645858 | J114: 7.67574375 | K114: 7.67574375
A118: VIII. | B118: Denatured Ethanol (D-EtOH) Calculator
B119: Volume % Ethanol in D-EtOH | C119: =1-C120 -> 0.975 | D119: =1-D120 -> 0.975 | E119: v/v EtOH/D-EtOH | I119: 2019 LCFS Reference CI of CARBOB
B120: Volume % of Denaturant (CARBOB and "Other") in D-EtOH | C120: 0.025 | D120: 0.025 | E120: v/v CARBOB/D-EtOH | I120: CARBOB CI | J120: 100.62
B121: Energy % Denaturant in D-EtOH | C121: 0.0376 | D121: 0.0376 | E121: MJ/MJ CARBOB/D-EtOH | I121: Blendstock CI | J121: 99.57154623
B122: 2014 CARBOB CI * | C122: 99.57154623 | D122: 99.57154623 | E122: g CO2e/MJ CARBOB | I122: CARFG CI | J122: 99.20993964
B123: Denaturant, g/MJ | C123: =(1-$C$121)*(C129+C130)+$C$121*$C$122-(C129+C130) -> 2.254756716 | D123: =(1-$C$121)*(D129+D130)+$C$121*$C$122-(D129+D130) -> 2.184793909 | E123: g CO2e/MJ | H123: changing these values will result in an incorrect
H124: CARFG and Denaturant calculation
C127: (gCO2e/MJ)
A128: IX. | B128: CI Summary | C128: Molasses | D128: Cane Juice
B129: CI (feedstock+fuel) | C129: =SUM(Q33:Q103) -> 27.80461228 | D129: =SUM(R33:R103) -> 29.66532525
B130: iLUC | C130: 11.8 | D130: =C130 -> 11.8
B131: Denaturant | C131: =C123 -> 2.254756716 | D131: =D123 -> 2.184793909
B132: Total CI (g/MJ) | C132: =SUM(C129:C131) -> 41.859369 | D132: =SUM(D129:D131) -> 43.65011915
B134: 3) Electric Transmission and Distribution Loss | E134: 0.081 | F134: 10) Calculation of Fuel-Cycle Energy Use, Water Consumption, and Emissions of other regional generation mixes
G135: Brazil | K135: Brazil
F136: Type | G136: Average | K136: Average
B137: 2.2) Electricity Generation Mixes, Combustion Technolgy Shares and Power Plant Energy Conversion Efficiencies for GREET Calculation | F137: Year | G137: 2012 | K137: v2.0
C138: Feedstock Production: Brazillian Mix | D138: Generation Mix for Stationary Applications | F138: Petroleum | G138: =D139 -> 0.0568 | K138: 0.0337
B139: Residual Oil-Fired Power Plants | D139: 0.0568 | F139: NG | G139: =D143 -> 0.1298 | K139: 0.0789
B140: Boiler | F140: Coal | G140: =D148 -> 0.0432 | K140: 0.0187
B141: Internal Combustion Engine | F141: Biomass | G141: =D151 -> 0.0738 | K141: 0.0698
B142: Gas Turbine | F142: Nuclear | G142: =D154 -> 0.0248 | K142: 0.026
B143: Natural Gas-Fired Power Plants | D143: 0.1298 | F143: Hydro | G143: =D155-G144 -> 0.6633 | K143: 0.7645
B144: Boiler | F144: Others | G144: 0.0083 | K144: 0.0083
B145: Simple-cycle gas turbine | F145: T&D Loss | G145: 0.081 | K145: 0.081
B146: Combined-cycle gas turbine | F146: Btu or Gallons or Grams per mmBtu of Electricity Available at User Sites
B147: Internal Combustion Engine | F147: Total energy | G147: 1723026
B148: Coal-Fired Power Plants | D148: 0.0432 | F148: Fossil fuels | G148: 700872
B149: Boiler | F149: Coal | G149: 135984
B150: IGCC | F150: Natural gas | G150: 258677 | I150: From CA-GREET v2.0
B151: Biomass Power Plants | D151: 0.0738 | F151: Petroleum | G151: 206211 | I151: Grams per mmBtu of Electricity Available at User Sites (Brazil Mix)
B152: Boiler | F152: Water consumption | G152: 946.39
B153: IGCC | F153: VOC | G153: =5.67+3.08 -> 8.75 | I153: VOC | J153: 7.090388587
B154: Nuclear Power Plants | D154: 0.0248 | F154: CO | G154: =14.395+36.88 -> 51.275 | I154: CO | J154: 120.9098296
B155: Other Power Plants (hydro, wind, geothermal, etc.) | D155: 0.6716
B156: Hydroelectric
B157: Geothermal
B158: Wind
B159: Solar PV | F159: CH4 | G159: =142.117+4.2 -> 146.317 | I159: CH4 | J159: 69.97419443
B160: Others (Biogenic Waste, Pumped Storage, etc.) | F160: N2O | G160: =0.492+2.43 -> 2.922 | I160: N2O | J160: 1.917998711
C161: Sum: | D161: =SUM(D139:D160) -> 1 | F161: CO2 | G161: =4703+47452 -> 52155 | I161: CO2 | J161: 29361.4596

Sheet Reference
B1: References for Sugarcane Ethanol Pathways
B3: Feedstock Type | C3: Sugarcane Juice | D3: Molasses | E3: Sources
B4: Juice-to-Sugar share, % | D4: User Defined
B5: Sucrose at gate | D5: User Defined
B6: a. Farming Energy
B7: Total Farming Energy | C7: 95,000 Btu/tonne | E7: CA-GREET 3.0
B8: Diesel fuel | C8: 36385
B9: Gasoline | C9: 11685
B10: Natural gas | C10: 20425
B11: Liquefied petroleum gas | C11: 17860
B12: Electricity | C12: 8550
B13: b. Fertilizer Use
B14: Nitrogen | C14: 800 g/tonne | E14: CA-GREET 3.0
B15: P2O5 | C15: 300
B16: K2O | C16: 1000
B17: CaCO3 | C17: 5200
B18: Herbicide | C18: 45
B19: Pesticide | C19: 2.5
B20: c. N2O in soil
B21: N in N2O as % of N in N fertilizer | C21: 0.01325 | E21: CA-GREET 3.0
B22: N in N2O as % of N in biomass | C22: 0.01225 | E22: CA-GREET 3.0
B23: d. Cane Transport
B24: Raw feedstock to collection point by MDT, mi | C24: 2 | E24: CA-GREET 3.0
B25: To Ethanol plant by HDDT mi | C25: User Defined
B26: e. Straw Burning
B27: Straw yield: dry tonne/wet tonne of sugarcane | C27: 0.2142 | E27: CA-GREET 3.0
B28: Moisture in straw | C28: 0.15 | E28: CA-GREET 3.0
B29: Burn Field, % | C29: 1 | E29: CA-GREET 3.0
B30: f. Mechanized Harvesting Credit
B31: Mechanized field, % | C31: User Defined or Standard at 65%
B32: g. Filter Cake T&D, miles | C32: same as cane transport
B33: h. Sugar Production
B34: CO2e/wet tonne of cane | D34: 3700 | E34: (Gopal et al, 2009).
B35: i. Ethanol Production
B36: Total Plant Energy (Btu/gal)
B37: Residual oil | C37: 300 | E37: CA-GREET 3.0
B38: Chemical Use, g/tonne of cane
B39: Lime | C39: 880 | E39: CA-GREET 3.0
B40: j. Fuel Distribution
B41: Distribution by HDT to blending terminal, miles | C41: 40 | E41: CA-GREET 3.0
B42: Distribution by HDT to stations, miles | C42: 50 | E42: CA-GREET 3.0
B43: k. Fuel Properties
B44: Density of EtOH (LHV), grams/gal | C44: 2988 | E44: CA-GREET 3.0
B45: Sugarcane bagasse, Btu/ton | C45: 12381771.31 | E45: CA-GREET 3.0 | F45: =C45*1000/(2000*0.4536) -> 13648336.98 | G45: Btu/tonne
B46: Bagasse yield: wet tonne per wet tonne of sugarcane | C46: 0.28 | E46: CA-GREET 3.0
B47: Moisture in bagasse | C47: 0.5 | E47: CA-GREET 3.0
B48: steam generation efficiency | C48: 0.8 | E48: CA-GREET 3.0
B49: Power Generation Efficiency | C49: 0.3 | E49: CA-GREET 3.0
B50: l. Sugarcane bagasse, emissions, grams/mmBtu fuel burned | C50: Small Industrial Boiler | E50: CA-GREET 3.0
B51: m. Electrciity Mix emissions, grams/mmBtu Available at User Sites | C51: Brazil Electricity Mix | E51: CA-GREET 3.0
B52: n. Electric Transmission and Distribution Loss | C52: 8.1% (Brazil) | E52: CA-GREET 3.0
B54: Gopal, A. and Kammen, D., 2009. “Molasses for ethanol: the economic and environmental impacts of a new pathway for the lifecycle greenhouse gas analysis of sugarcane ethanol,” Gopal, A., and Kammen, D., Environmental Research Letters, 4 (2009) 044005 (5pp).
B64: Unit conversion
B79: Ethanol fuel properties
D80: LHV
B81: Density of EtOH, grams/gal | D81: 2988
B83: Sugarcane bagasse, Btu/ton | D83: 12381771.31 | G83: Bagasse, Btu/metric ton | H83: =Reference!D83/'EF Tables'!$S$47 -> 13648566.57
B84: Bagasse yield: wet tonne per wet tonne of sugarcane | C84: 0.28 | G84: steam generation efficiency | H84: 0.8
B85: Moisture in bagasse | C85: 0.5 | G85: Power Generation Efficiency | H85: 0.3
